bitfinex-derivatives/quotes_BTCF0:USTF0_20250313
["timestamp","ask_amount","ask_price","bid_price","bid_amount"]
[1741894225943,0.1241844,80556.0,80545.0,0.084]
[1741894226139,0.0822909,80555.0,80545.0,0.1273]
[1741894226345,0.135,80561.0,80553.0,0.0433]
[1741894226732,0.135,80561.0,80560.0,0.1241782]
[1741894227140,0.27164082,80561.0,80560.0,0.1241782]
[1741894227330,0.135,80561.0,80560.0,0.2076782]
[1741894227532,0.00018623,80565.0,80564.0,0.124172]
[1741894228538,0.12435673,80565.0,80564.0,0.124172]
[1741894229144,0.1862641,80563.0,80562.0,0.1862592]
[1741894229342,0.0620874,80563.0,80562.0,0.1862592]
[1741894229540,0.00018623,80565.0,80564.0,0.124172]
[1741894230441,0.00218623,80565.0,80564.0,0.124172]
[1741894231052,0.12635673,80565.0,80564.0,0.124172]
[1741894231345,0.0620926,80556.0,80549.0,0.00018623]
[1741894231643,0.1241905,80552.0,80551.0,0.1664921]
[1741894232045,0.0620944,80554.0,80551.0,0.0423]
[1741894232248,0.28193014,80579.0,80551.0,0.0852]
[1741894232546,0.0427,80562.0,80561.0,0.1241767]
[1741894233155,0.1668751,80562.0,80561.0,0.2093767]
[1741894233450,0.0427,80562.0,80561.0,0.2093767]
[1741894233950,0.00218623,80565.0,80562.0,0.124172]
[1741894234141,0.1241744,80563.0,80562.0,0.124172]
[1741894234537,0.0415,80564.0,80563.0,0.1241736]
[1741894234753,0.165672,80564.0,80563.0,0.1241736]
[1741894234954,0.209472,80564.0,80563.0,0.1241736]
[1741894235748,0.0620939,80556.0,80540.0,0.21263925]
[1741894236053,0.0620871,80563.0,80543.0,0.0445]
[1741894236054,0.1241936,80550.0,80543.0,0.0445]
[1741894236250,0.1241936,80550.0,80546.0,0.1241984]
[1741894236448,0.1241936,80550.0,80548.0,0.1241962]
[1741894236647,0.16334293,80550.0,80549.0,0.12438143]
[1741894236849,0.0431,80550.0,80549.0,0.12438143]
[1741894237055,0.09462709,80582.0,80557.0,0.0620911]
[1741894237247,0.0431,80563.0,80562.0,0.1241751]
[1741894237450,0.001,80564.0,80562.0,0.1241751]
[1741894237750,0.001,80564.0,80563.0,0.1241736]
[1741894238253,0.0431,80570.0,80564.0,0.124172]
[1741894238449,0.1241652,80569.0,80564.0,0.124172]
[1741894238843,0.1241689,80567.0,80564.0,0.124172]
[1741894239044,0.12435673,80565.0,80564.0,0.124172]
[1741894239254,0.00018623,80565.0,80564.0,0.124172]
[1741894239443,0.12435673,80565.0,80564.0,0.124172]
[1741894240443,0.12535673,80565.0,80564.0,0.124172]
[1741894240850,0.00118623,80565.0,80564.0,0.124172]
[1741894242450,0.04528623,80565.0,80564.0,0.124172]
[1741894242649,0.16945673,80565.0,80564.0,0.124172]
[1741894243744,0.04528623,80565.0,80558.0,0.1795]
[1741894243944,0.1241797,80560.0,80559.0,0.1241784]
[1741894245551,0.0441,80561.0,80560.0,0.1241782]
[1741894245748,0.06227223,80565.0,80564.0,0.124172]
[1741894246452,0.14417223,80565.0,80564.0,0.124172]
[1741894247948,0.10367223,80565.0,80564.0,0.124172]
[1741894248558,0.13807223,80565.0,80564.0,0.124172]
[1741894249453,0.13807223,80565.0,80558.0,0.1065894]
[1741894249454,0.13807223,80565.0,80558.0,0.0445]
[1741894249654,0.1241859,80555.0,80554.0,0.1862755]
[1741894250152,0.1241921,80551.0,80550.0,0.1686936]
[1741894250652,0.1241936,80550.0,80549.0,0.00018623]
[1741894250859,0.16338201,80550.0,80549.0,0.00018623]
[1741894251558,0.1242029,80544.0,80543.0,0.00186229]
[1741894251749,0.16339131,80544.0,80543.0,0.00186229]
[1741894252144,0.16139131,80544.0,80543.0,0.00186229]
[1741894252356,0.16139131,80544.0,80536.0,0.0999069]
[1741894252357,0.03918841,80544.0,80539.0,0.12421]
[1741894252558,0.0621106,80533.0,80532.0,0.00018623]
[1741894252857,0.1242383,80521.0,80520.0,0.37106434]
[1741894253061,0.16342671,80521.0,80520.0,0.37106434]
[1741894253357,0.1242445,80517.0,80516.0,0.124246]
[1741894253751,0.1242445,80517.0,80516.0,0.162146]
[1741894253947,0.1359199,80520.0,80519.0,0.1242414]
[1741894253948,0.0404,80520.0,80519.0,0.1242414]
[1741894254147,0.1646399,80520.0,80519.0,0.1242414]
[1741894254355,0.1616399,80520.0,80519.0,0.1242414]
[1741894254558,0.1616399,80520.0,80516.0,0.200246]
[1741894254757,0.2197628,80519.0,80518.0,0.1621429]
[1741894254948,0.1863628,80519.0,80518.0,0.1621429]
[1741894255258,0.0621214,80519.0,80518.0,0.1621429]
[1741894255464,0.006,80520.0,80519.0,0.1242414]
[1741894255659,0.1272399,80520.0,80519.0,0.1621414]
[1741894255960,0.1242399,80520.0,80519.0,0.1621414]
[1741894256161,0.0621184,80522.0,80521.0,0.1242383]
[1741894256559,0.0621184,80522.0,80519.0,0.13922]
[1741894256773,0.1242399,80520.0,80519.0,0.0771]
[1741894256964,0.1242399,80520.0,80519.0,0.0379]
[1741894257647,0.1634399,80520.0,80519.0,0.0379]
[1741894258055,0.1664399,80520.0,80519.0,0.0379]
[1741894258560,0.1634399,80520.0,80519.0,0.0379]
[1741894258758,0.1664399,80520.0,80519.0,0.0389]
[1741894259154,0.1634399,80520.0,80519.0,0.0389]
[1741894259459,0.1242522,80512.0,80511.0,0.1628538]
[1741894260162,0.13644372,80512.0,80511.0,0.1628538]
[1741894260358,0.009,80520.0,80519.0,0.1242414]
[1741894260857,0.005,80520.0,80519.0,0.1242414]
[1741894261363,0.004,80520.0,80519.0,0.1631414]
[1741894261777,0.009,80520.0,80519.0,0.1631414]
[1741894262554,0.18479901,80526.0,80519.0,0.1631414]
[1741894262555,0.18479901,80526.0,80524.0,0.1242337]
[1741894262962,0.06138524,80526.0,80524.0,0.1242337]
[1741894263165,0.22190879,80531.0,80530.0,0.1242245]
[1741894263367,0.22190879,80531.0,80530.0,0.2592645]
[1741894263568,0.1863197,80541.0,80540.0,0.124206]
[1741894264166,0.0621059,80541.0,80540.0,0.124206]
[1741894264367,0.00186341,80543.0,80542.0,0.124206]
[1741894264569,0.16516781,80543.0,80542.0,0.124206]
[1741894264957,0.04096341,80543.0,80542.0,0.124206]
[1741894265159,0.16516781,80543.0,80542.0,0.124206]
[1741894265366,0.1242121,80539.0,80538.0,0.062105]
[1741894265866,0.00386341,80543.0,80542.0,0.124206]
[1741894266067,0.6319088,80564.0,80545.0,0.0621004]
[1741894266068,0.062088,80562.0,80545.0,0.0621004]
[1741894266259,0.0391,80563.0,80548.0,0.1241967]
[1741894266260,0.124191,80552.0,80548.0,0.1241967]
[1741894266571,0.1241982,80547.0,80546.0,0.0373]
[1741894266765,0.124206,80542.0,80541.0,0.19849875]
[1741894266962,0.124206,80542.0,80541.0,0.1863033]
[1741894267466,0.124206,80542.0,80541.0,0.0621019]
[1741894267864,0.166506,80542.0,80541.0,0.0621019]
[1741894268565,0.1242075,80541.0,80540.0,0.0396]
[1741894268767,0.1242198,80533.0,80526.0,0.00064]
[1741894269069,0.1242198,80533.0,80529.0,0.1242251]
[1741894269288,0.1242198,80533.0,80521.0,0.0412]
[1741894269464,0.1242353,80523.0,80522.0,0.1638368]
[1741894269657,0.0621156,80526.0,80522.0,0.0396]
[1741894269860,0.13504,80530.0,80494.0,0.41066342]
[1741894269861,0.0385,80524.0,80505.0,0.00068]
[1741894270157,0.1242615,80508.0,80507.0,0.1242537]
[1741894270362,0.1863914,80508.0,80507.0,0.2275812]
[1741894270762,0.06230933,80516.0,80509.0,0.1242569]
[1741894270763,0.0385,80510.0,80509.0,0.1242569]
[1741894271062,0.12443233,80516.0,80515.0,0.1242476]
[1741894271372,0.12443233,80516.0,80515.0,0.0412]
[1741894272467,0.12443233,80516.0,80515.0,0.0818]
[1741894272970,0.0096897,80516.0,80500.0,0.0412]
[1741894273269,0.1242692,80501.0,80500.0,0.0412]
[1741894273470,0.1242692,80501.0,80500.0,0.1654708]
[1741894274071,0.1864015,80503.0,80502.0,0.1242677]
[1741894274370,0.0761,80506.0,80505.0,0.124263]
[1741894274569,0.1863861,80509.0,80508.0,0.1242584]
[1741894274773,0.12426,80508.0,80507.0,0.1242585]
[1741894274962,0.12426,80508.0,80507.0,0.2040585]
[1741894275463,0.12426,80508.0,80507.0,0.0798]
[1741894275870,0.0096897,80516.0,80507.0,0.0798]
[1741894276071,0.1863838,80513.0,80512.0,0.0621251]
[1741894276365,0.1863886,80510.0,80509.0,0.1242512]
[1741894276566,0.2485171,80510.0,80509.0,0.1242512]
[1741894276875,0.124257,80510.0,80509.0,0.1242512]
[1741894277070,0.0096897,80516.0,80509.0,0.1242512]
[1741894277276,0.1339383,80516.0,80515.0,0.1242476]
[1741894277478,0.12443483,80516.0,80515.0,0.1242476]
[1741894278068,0.00018623,80516.0,80515.0,0.2001476]
[1741894278679,0.00118623,80516.0,80515.0,0.2001476]
[1741894278879,0.00218623,80516.0,80515.0,0.2001476]
[1741894279078,0.12643233,80516.0,80515.0,0.2001476]
[1741894279380,0.12643233,80516.0,80515.0,0.21190668]
[1741894280180,0.12543233,80516.0,80515.0,0.2001476]
[1741894280380,0.00218623,80516.0,80515.0,0.2001476]
[1741894281784,0.01820148,84806.0,80535.0,0.1242168]
[1741894281785,0.34612469,80536.0,80535.0,0.1242168]
[1741894282083,0.22190879,80536.0,80535.0,0.13594773]
[1741894282977,0.22190879,80536.0,80535.0,0.2484168]
[1741894283779,0.14793469,80541.0,80535.0,0.2484168]
[1741894283980,0.39635789,80541.0,80540.0,0.124209]
[1741894284484,0.14793469,80541.0,80540.0,0.124209]
[1741894284980,0.14793469,80541.0,80540.0,0.165009]
[1741894284981,0.27214219,80541.0,80540.0,0.165009]
[1741894285178,0.27614219,80541.0,80540.0,0.165009]
[1741894286484,0.15193469,80541.0,80540.0,0.165009]
[1741894287280,0.15193469,80541.0,80540.0,0.360049]
[1741894287483,0.00186327,80550.0,80540.0,0.36000113]
[1741894287679,0.22190879,80563.0,80543.0,0.0621017]
[1741894287979,0.1862763,80560.0,80559.0,0.1862635]
[1741894288179,0.1986906,80560.0,80559.0,0.1862635]
[1741894288984,0.2607821,80560.0,80559.0,0.1862635]
[1741894289881,0.1365957,80560.0,80556.0,0.1241842]
[1741894290081,0.1241828,80557.0,80556.0,0.1241842]
[1741894290286,0.1241875,80554.0,80553.0,0.2049875]
[1741894290686,0.04,80559.0,80558.0,0.1241813]
[1741894290882,0.1641797,80559.0,80558.0,0.1241813]
[1741894292183,0.1641797,80559.0,80553.0,0.1241881]
[1741894292184,0.1862849,80554.0,80553.0,0.1241881]
[1741894292384,0.0620944,80554.0,80553.0,0.1241881]
[1741894292592,0.0398,80554.0,80553.0,0.1241881]
[1741894292778,0.1639875,80554.0,80553.0,0.1241881]
[1741894293079,0.0124143,80560.0,80553.0,0.0772]
[1741894293285,0.1241758,80562.0,80556.0,0.0620918]
[1741894293485,0.1241758,80562.0,80561.0,0.1241767]
[1741894293692,0.135,80573.0,80558.0,0.0620906]
[1741894293878,0.18448947,80569.0,80562.0,0.0620868]
[1741894294079,0.16615213,80568.0,80567.0,0.1241674]
[1741894294387,0.02230153,80568.0,80565.0,0.124169]
[1741894294682,0.02230153,80568.0,80567.0,0.1241674]
[1741894294683,0.00018623,80568.0,80567.0,0.1241674]
[1741894295290,0.00018623,80568.0,80567.0,0.1639674]
[1741894296792,0.22190879,80574.0,80567.0,0.0798]
[1741894297089,0.00186243,80581.0,80570.0,0.0620811]
[1741894297276,0.00186243,80581.0,80580.0,0.1241474]
[1741894297982,0.1241458,80581.0,80580.0,0.1241474]
[1741894298182,0.1241458,80581.0,80580.0,0.1657474]
[1741894298780,0.1637458,80581.0,80580.0,0.1657474]
[1741894298983,0.041,80582.0,80580.0,0.1657474]
[1741894299181,0.0396,80585.0,80584.0,0.1241412]
[1741894299381,0.1241341,80589.0,80588.0,0.1241335]
[1741894299581,0.2047341,80589.0,80588.0,0.1241335]
[1741894300788,0.2047335,80589.0,80588.0,0.1241335]
[1741894300994,0.0806,80589.0,80588.0,0.1241335]
[1741894301479,0.2047335,80589.0,80588.0,0.1241335]
[1741894302489,0.0806,80589.0,80578.0,0.0620752]
[1741894302696,0.1862225,80581.0,80580.0,0.1241467]
[1741894302989,0.1241437,80583.0,80582.0,0.1862126]
[1741894303195,0.1241437,80583.0,80582.0,0.1000714]
[1741894303379,0.0783,80583.0,80582.0,0.1000714]
[1741894303579,0.2024428,80583.0,80582.0,0.1000714]
[1741894303783,0.2024428,80583.0,80582.0,0.038]
[1741894303982,0.2024428,80583.0,80068.0,0.12340389]
[1741894303983,0.1241489,80580.0,80579.0,0.1241489]
[1741894304383,0.1623489,80580.0,80579.0,0.1241489]
[1741894304583,0.2024489,80580.0,80579.0,0.1241489]
[1741894304790,0.0783,80580.0,80579.0,0.1241489]
[1741894304995,0.1623412,80584.0,80583.0,0.1241428]
[1741894305789,0.0382,80584.0,80564.0,0.01219277]
[1741894306091,0.1241582,80573.0,80565.0,0.0403]
[1741894306283,0.13492,80573.0,80550.0,0.00186206]
[1741894306490,0.1241921,80551.0,80550.0,0.00186206]
[1741894306809,0.1241921,80551.0,80532.0,0.4088]
[1741894306810,0.1242044,80543.0,80535.0,0.38337114]
[1741894307091,0.1242044,80543.0,80542.0,0.42000023]
[1741894307298,0.1242044,80543.0,80542.0,0.41999833]
[1741894307486,0.1242044,80543.0,80542.0,0.29579423]
[1741894308083,0.13673803,80543.0,80542.0,0.29579423]
[1741894308292,0.27165803,80543.0,80542.0,0.29579423]
[1741894309097,0.14745363,80543.0,80534.0,0.00018623]
[1741894309301,0.0818,80542.0,80541.0,0.1242075]
[1741894309492,0.206006,80542.0,80541.0,0.1242075]
[1741894309796,0.206006,80542.0,80541.0,0.1647075]
[1741894310188,0.206006,80542.0,80541.0,0.2037075]
[1741894310400,0.206006,80542.0,80541.0,0.1632075]
[1741894310583,0.206006,80542.0,80541.0,0.039]
[1741894310787,0.0818,80542.0,80534.0,0.00018623]
[1741894311297,0.1439034,80542.0,80534.0,0.00018623]
[1741894311499,0.206006,80542.0,80541.0,0.1242075]
[1741894311697,0.1242134,80538.0,80537.0,0.1242114]
[1741894312085,0.0818,80542.0,80541.0,0.1242075]
[1741894314190,0.07477071,80547.0,80544.0,0.1241998]
[1741894314387,0.078,80546.0,80545.0,0.0832]
[1741894314702,0.2021998,80546.0,80545.0,0.2074013]
[1741894314898,0.2021998,80546.0,80545.0,0.0419]
[1741894315201,0.1242075,80541.0,80540.0,0.042]
[1741894315696,0.062106,80538.0,80534.0,0.00018623]
[1741894315897,0.1242168,80535.0,80534.0,0.00018623]
[1741894318392,0.1242168,80535.0,80534.0,0.12440453]
[1741894318602,0.2022149,80537.0,80536.0,0.1242152]
[1741894318898,0.1242168,80535.0,80534.0,0.06229463]
[1741894319892,0.078,80537.0,80536.0,0.1242152]
[1741894320094,0.1242063,80543.0,80542.0,0.1242043]
[1741894320403,0.61003336,80560.0,80543.0,0.1242044]
[1741894320404,0.0417,80544.0,80543.0,0.1242044]
[1741894320600,0.07787914,80579.0,80550.0,0.1241936]
[1741894320804,0.0417,80558.0,80550.0,0.1241936]
[1741894321199,0.0408,80564.0,80550.0,0.1241936]
[1741894321504,0.01238864,80561.0,80550.0,0.1241936]
[1741894321703,0.0620931,80555.0,80550.0,0.1241936]
[1741894322000,0.0620931,80555.0,80541.0,0.19999335]
[1741894322001,0.1863035,80547.0,80546.0,0.0620996]
[1741894322189,0.1863035,80547.0,80530.0,0.26210535]
[1741894322389,0.0620976,80549.0,80541.0,0.124202]
[1741894322390,0.1863123,80542.0,80541.0,0.124202]
[1741894322899,0.1863077,80544.0,80543.0,0.1242044]
[1741894325298,0.1863077,80544.0,80541.0,0.062103]
[1741894325299,0.1242152,80536.0,80531.0,0.12434692]
[1741894325499,0.1242168,80535.0,80533.0,0.1242194]
[1741894325705,0.1242168,80535.0,80531.0,0.00012542]
[1741894325706,0.1632168,80535.0,80531.0,0.00012542]
[1741894326298,0.039,80535.0,80506.0,0.13496]
[1741894326498,0.124243,80518.0,80511.0,0.1242527]
[1741894326805,0.124243,80518.0,80517.0,0.12610741]
[1741894327303,0.12434182,80518.0,80517.0,0.12610741]
[1741894327509,0.12434182,80518.0,80517.0,0.13010741]
[1741894328199,0.12434182,80518.0,80517.0,0.00586291]
[1741894328401,0.12434182,80518.0,80517.0,0.004]
[1741894328601,0.12434182,80518.0,80517.0,1e-07]
[1741894328800,0.1242553,80510.0,80509.0,0.00018623]
[1741894329401,0.2006553,80510.0,80509.0,0.00018623]
[1741894330399,0.2026553,80510.0,80509.0,0.00018623]
[1741894330906,0.2026553,80510.0,80498.0,0.0415]
[1741894330907,0.1242723,80499.0,80498.0,0.0415]
[1741894331110,0.12440088,80499.0,80498.0,0.0415]
[1741894331298,0.12440088,80499.0,80498.0,0.1657738]
[1741894331607,0.00012858,80499.0,80498.0,0.1657738]
[1741894331904,0.00018623,80507.0,80498.0,0.0415]
[1741894332104,0.00018623,80507.0,80506.0,0.1242615]
[1741894333613,0.00018623,80507.0,80506.0,0.1262615]
[1741894333797,0.00018623,80507.0,80506.0,0.1663615]
[1741894333993,0.12444623,80507.0,80506.0,0.1663615]
[1741894334605,0.00018623,80507.0,80506.0,0.1663615]
[1741894335002,0.12444623,80507.0,80506.0,0.0421]
[1741894335205,0.12444623,80507.0,80506.0,0.1653615]
[1741894335917,0.12544623,80507.0,80506.0,0.0401]
[1741894336102,0.12544623,80507.0,80490.0,0.00018623]
[1741894336103,0.1242847,80491.0,80490.0,0.00018623]
[1741894336404,0.186423,80496.0,80495.0,0.2485465]
[1741894337197,0.1242675,80503.0,80502.0,0.124263]
[1741894337404,0.1242675,80503.0,80502.0,0.1863953]
[1741894338313,0.12444623,80507.0,80506.0,0.1242615]
[1741894338808,0.00018623,80507.0,80506.0,0.1242615]
[1741894339006,0.18547638,80515.0,80514.0,0.1242491]
[1741894339509,0.18547638,80515.0,80514.0,0.2742491]
[1741894339703,0.1836124,80515.0,80514.0,0.2742491]
[1741894339904,0.1836124,80515.0,80514.0,0.3556491]
[1741894340306,0.1836124,80515.0,80514.0,0.2056491]
[1741894340512,0.1836124,80515.0,80514.0,0.21780589]
[1741894340710,0.1836124,80515.0,80514.0,0.21880589]
[1741894341115,0.15125961,80523.0,80514.0,0.21880589]
[1741894341116,0.00018636,80523.0,80514.0,0.09455679]
[1741894341305,0.00018636,80523.0,80520.0,0.1242368]
[1741894341500,0.00018636,80523.0,80522.0,0.1242368]
[1741894342013,0.12442166,80523.0,80522.0,0.2451368]
[1741894342213,0.00018636,80523.0,80522.0,0.2451368]
[1741894343412,0.00018636,80523.0,80522.0,0.2471368]
[1741894343711,0.12442166,80523.0,80522.0,0.2481368]
[1741894344015,0.00018636,80523.0,80522.0,0.2481368]
[1741894344914,0.00018636,80523.0,80522.0,0.2471368]
[1741894345817,0.00018636,80523.0,80522.0,0.2481368]
[1741894346514,0.0620823,80569.0,80542.0,0.124206]
[1741894346720,0.062097,80550.0,80542.0,0.124206]
[1741894346918,0.0417,80558.0,80553.0,0.124189]
[1741894346919,0.05402317,80558.0,80553.0,0.124189]
[1741894347118,0.3077999,80554.0,80553.0,0.124189]
[1741894347308,0.1836124,80554.0,80553.0,0.124189]
[1741894348120,0.1836124,80554.0,80553.0,0.259149]
[1741894348421,0.14753445,80562.0,80561.0,0.1241767]
[1741894348809,0.14753445,80562.0,80561.0,0.1941767]
[1741894349014,0.14753445,80562.0,80561.0,0.1241767]
[1741894349717,0.14753445,80562.0,80561.0,0.13646018]
[1741894349910,0.14853445,80562.0,80561.0,0.13646018]
[1741894350317,0.14753445,80562.0,80561.0,0.13646018]
[1741894350522,0.14753445,80562.0,80561.0,0.13746018]
[1741894350912,0.14753445,80562.0,80561.0,0.13646018]
[1741894351120,0.14753445,80562.0,80561.0,0.13746018]
[1741894351422,0.1836124,80567.0,80561.0,0.45258895]
[1741894351617,0.1836124,80567.0,80566.0,0.124169]
[1741894351832,0.1836124,80567.0,80566.0,0.299089]
[1741894352227,0.1241536,80576.0,80566.0,0.17492]
[1741894352409,0.1241536,80576.0,80575.0,0.1241551]
[1741894352720,0.0620721,80583.0,80581.0,0.1241443]
[1741894352721,0.1862248,80582.0,80581.0,0.1241443]
[1741894352921,0.2659248,80582.0,80581.0,0.1241443]
[1741894353620,0.1241436,80583.0,80581.0,0.1241443]
[1741894353816,0.1241436,80583.0,80582.0,0.1241443]
[1741894354022,0.1241436,80583.0,80582.0,0.1656443]
[1741894354510,0.2038436,80583.0,80582.0,0.1656443]
[1741894356111,0.0397,80583.0,80582.0,0.1656443]
[1741894356316,0.1638428,80583.0,80582.0,0.1656443]
[1741894356727,0.0397,80583.0,80582.0,0.1656443]
[1741894357021,0.001,80583.0,80582.0,0.1656443]
[1741894359823,0.1251428,80583.0,80582.0,0.1656443]
[1741894360126,0.001,80583.0,80582.0,0.1656443]
[1741894361622,0.0788,80583.0,80582.0,0.1656443]
[1741894363027,0.2029428,80583.0,80582.0,0.1656443]
[1741894363928,0.0788,80583.0,80582.0,0.2076443]
[1741894365725,0.2029428,80583.0,80582.0,0.2076443]
[1741894365933,0.2029428,80583.0,80582.0,0.3424843]
[1741894366131,0.0788,80583.0,80582.0,0.3424843]
[1741894366429,0.0788,80583.0,80582.0,0.1241443]
[1741894366619,0.2029428,80583.0,80582.0,0.1241443]
[1741894366822,0.0620775,80576.0,80575.0,0.1862265]
[1741894367130,0.0620753,80578.0,80575.0,0.062076]
[1741894367328,0.1872179,80583.0,80582.0,0.1241443]
[1741894368124,0.001,80583.0,80582.0,0.1241443]
[1741894368834,0.001,80583.0,80582.0,0.2071443]
[1741894369031,0.0620725,80582.0,80578.0,0.0620751]
[1741894369241,0.1241643,80569.0,80568.0,0.1241655]
[1741894369535,0.0620677,80588.0,80570.0,0.1241612]
[1741894369536,0.1241623,80571.0,80570.0,0.1241612]
[1741894369731,0.13657792,80571.0,80570.0,0.1241612]
[1741894369931,0.17797792,80571.0,80570.0,0.1241612]
[1741894370328,0.1241674,80568.0,80567.0,0.1241633]
[1741894370724,0.1241634,80570.0,80569.0,0.1241628]
[1741894371136,0.17797742,80571.0,80570.0,0.1241628]
[1741894372031,0.17797742,80571.0,80563.0,0.00018624]
[1741894372032,0.05481562,80571.0,80563.0,0.00018624]
[1741894372338,0.124172,80565.0,80564.0,0.1241691]
[1741894372834,0.124172,80564.0,80563.0,0.00018624]
[1741894374233,0.0620839,80567.0,80563.0,0.00018624]
[1741894374234,0.05381562,80571.0,80563.0,0.00018624]
[1741894374535,0.1241655,80569.0,80568.0,0.1241628]
[1741894375134,0.0620824,80569.0,80568.0,0.1241628]
[1741894376134,0.1241674,80567.0,80566.0,0.0620838]
[1741894377534,0.001,80567.0,80566.0,0.1023838]
[1741894377937,0.1251674,80567.0,80566.0,0.1023838]
[1741894378237,0.1251674,80567.0,80566.0,0.0620838]
[1741894379029,0.1241674,80567.0,80566.0,0.0620838]
[1741894379227,0.1251674,80567.0,80566.0,0.0620838]
[1741894380232,0.1241674,80567.0,80566.0,0.0620838]
[1741894380434,0.1251674,80567.0,80566.0,0.0620838]
[1741894381332,0.001,80567.0,80566.0,0.0620838]
[1741894381637,0.001,80567.0,80566.0,0.2396838]
[1741894381944,0.001,80567.0,80566.0,0.301769]
[1741894382641,0.0398,80575.0,80574.0,0.1241566]
[1741894383142,0.0398,80575.0,80574.0,0.2059566]
[1741894383842,0.2027551,80575.0,80574.0,0.2059566]
[1741894384033,0.2037551,80575.0,80574.0,0.2059566]
[1741894384432,0.0796,80575.0,80574.0,0.2059566]
[1741894385527,0.0796,80575.0,80550.0,0.0620961]
[1741894385732,0.1241705,80565.0,80564.0,0.041]
[1741894386038,0.1241705,80565.0,80564.0,0.206972]
[1741894386339,0.0815,80566.0,80564.0,0.206972]
[1741894386638,0.0815,80566.0,80565.0,0.1241705]
[1741894387139,0.1241498,80581.0,80580.0,0.1241419]
[1741894387342,0.0423,80586.0,80565.0,0.0828]
[1741894387343,0.0620728,80582.0,80565.0,0.0828]
[1741894387537,0.0620819,80570.0,80569.0,0.1241589]
[1741894387839,0.04,80580.0,80563.0,0.00018624]
[1741894387840,0.124172,80564.0,80563.0,0.00018624]
[1741894388337,0.1241813,80558.0,80552.0,0.37106434]
[1741894388637,0.1241982,80547.0,80542.0,0.1242054]
[1741894388950,0.03904809,80547.0,80546.0,0.56809376]
[1741894389133,0.082,80548.0,80547.0,0.1241982]
[1741894389443,0.1968889,80561.0,80560.0,0.1241782]
[1741894389444,0.2589774,80561.0,80560.0,0.1241782]
[1741894389643,0.1241813,80559.0,80558.0,0.1241806]
[1741894389947,0.04,80560.0,80558.0,0.0404]
[1741894390133,0.1641797,80559.0,80558.0,0.164581]
[1741894390943,0.1651797,80559.0,80558.0,0.207081]
[1741894391135,0.001,80559.0,80558.0,0.207081]
[1741894391536,0.001,80559.0,80558.0,0.2196928]
[1741894394347,0.22190879,80562.0,80558.0,0.2196928]
[1741894394348,0.22190879,80562.0,80561.0,0.1241767]
[1741894394539,0.15092603,80577.0,80568.0,0.1241659]
[1741894394851,0.15092603,80577.0,80568.0,0.2989659]
[1741894395345,0.15092603,80577.0,80574.0,0.1241566]
[1741894395545,0.15092603,80577.0,80572.0,0.0620791]
[1741894395546,0.22136131,80576.0,80575.0,0.1241551]
[1741894396336,0.22136131,80576.0,80575.0,0.1641551]
[1741894397245,0.32615822,80587.0,80575.0,0.2241072]
[1741894397438,0.32615822,80587.0,80586.0,0.1241381]
[1741894397638,0.32615822,80587.0,80586.0,0.2588981]
[1741894398540,0.49553522,80611.0,80598.0,0.1241197]
[1741894398735,0.0422,80609.0,80598.0,0.2710672]
[1741894398948,0.49553522,80611.0,80609.0,0.1241027]
[1741894399145,0.49553522,80611.0,80609.0,0.2588627]
[1741894399447,0.01245648,80628.0,80621.0,0.0620415]
[1741894399645,0.01245648,80628.0,80627.0,0.124075]
[1741894399946,0.48073012,80631.0,80630.0,0.1240704]
[1741894400244,0.47993012,80631.0,80630.0,0.1640704]
[1741894400438,0.47993012,80631.0,80630.0,0.17655663]
[1741894401839,0.042,80658.0,80630.0,0.2521464]
[1741894402046,0.0620201,80652.0,80646.0,0.0620228]
[1741894402239,0.1240442,80648.0,80647.0,0.2264604]
[1741894402749,0.1240442,80648.0,80647.0,0.1024208]
[1741894403754,0.0825,80651.0,80647.0,0.1024208]
[1741894403755,0.1445191,80651.0,80647.0,0.1024208]
[1741894403943,0.0401,80649.0,80648.0,0.1240396]
[1741894404437,0.0401,80649.0,80648.0,0.1666396]
[1741894404750,0.0401,80649.0,80648.0,0.2084396]
[1741894405050,0.1641412,80649.0,80648.0,0.2084396]
[1741894405248,0.1641412,80649.0,80648.0,0.0426]
[1741894405548,0.0620272,80642.0,80637.0,0.17648]
[1741894405747,0.1240581,80640.0,80639.0,0.1240535]
[1741894406155,0.1636581,80640.0,80639.0,0.1240535]
[1741894407037,0.0396,80640.0,80639.0,0.1240535]
[1741894407244,0.0620148,80658.0,80657.0,0.1240273]
[1741894407449,0.0620148,80658.0,80653.0,0.1240307]
[1741894407450,0.1860583,80654.0,80653.0,0.1240307]
[1741894407750,0.0620182,80654.0,80653.0,0.1240307]
[1741894407945,0.0409,80657.0,80656.0,0.1240304]
[1741894408647,0.0409,80657.0,80656.0,0.1637304]
[1741894408848,0.0409,80657.0,80656.0,0.2049304]
[1741894409846,0.0409,80657.0,80640.0,0.19966017]
[1741894410140,0.0620197,80651.0,80650.0,0.1240362]
[1741894410342,0.1860623,80651.0,80650.0,0.1240362]
[1741894411863,0.0408,80656.0,80638.0,0.0620287]
[1741894412049,0.1240504,80643.0,80642.0,0.2586892]
[1741894412251,0.0620206,80649.0,80642.0,0.3827391]
[1741894412449,0.2676695,80648.0,80647.0,0.1240412]
[1741894412752,0.08153297,80648.0,80647.0,0.1240412]
[1741894412947,0.1240442,80647.0,80646.0,0.1637457]
[1741894413648,0.0620205,80650.0,80646.0,0.0397]
[1741894413839,0.0405,80654.0,80650.0,0.0620196]
[1741894414043,0.1860563,80653.0,80652.0,0.124035]
[1741894414957,0.062019,80651.0,80647.0,0.0421]
[1741894415148,0.1240427,80649.0,80648.0,0.1240422]
[1741894416046,0.2038427,80649.0,80648.0,0.1240422]
[1741894416246,0.0798,80649.0,80636.0,0.00018611]
[1741894416447,0.1860789,80645.0,80644.0,0.1240433]
[1741894416649,0.0392,80649.0,80648.0,0.1240427]
[1741894417157,0.1632412,80649.0,80648.0,0.1240427]
[1741894417559,0.0392,80649.0,80648.0,0.1240427]
[1741894417755,0.0619978,80679.0,80647.0,0.0416]
[1741894417958,0.0392,80667.0,80665.0,0.186021]
[1741894418147,0.0392,80667.0,80666.0,0.124015]
[1741894419051,0.1239957,80679.0,80678.0,0.0619975]
[1741894419247,0.165595,80680.0,80679.0,0.123995]
[1741894419659,0.00186018,80681.0,80680.0,0.1239935]
[1741894420256,0.12585218,80681.0,80680.0,0.1239935]
[1741894420448,0.00186018,80681.0,80680.0,0.1667935]
[1741894420649,0.0409,80685.0,80684.0,0.1239874]
[1741894420958,0.1648858,80685.0,80684.0,0.1239874]
[1741894421160,0.0409,80685.0,80684.0,0.1239874]
[1741894421951,0.1648858,80685.0,80684.0,0.1239874]
[1741894422346,0.1239904,80683.0,80682.0,0.1239893]